[Event "Titled Tuesday Blitz February 22 Early 2022"]
[White "Dziththauly, Ramadhan"]
[Black "Todorovic, Bojan"]
[WhiteFideId "7105525"]
[BlackFideId "917087"]
[WhiteElo "2579"]
[BlackElo "2266"]
[Result "1-0"]
[Round "03"]
[TimeControl "180+1"]
[Date "2022.02.22"]
[WhiteClock "0:01:59"]
[BlackClock "0:00:27"]

1. d4 {[%clk 0:03:00]}  Nf6 {[%clk 0:02:59]} 2. c4 {[%clk 0:03:00]}  g6 {[%clk 0:02:58]} 3. Nc3 {[%clk 0:03:01]}  Bg7 {[%clk 0:02:58]} 4. e4 {[%clk 0:03:01]}  O-O {[%clk 0:02:58]} 5. f3 {[%clk 0:03:02]}  d6 {[%clk 0:02:58]} 6. Bg5 {[%clk 0:03:02]}  c5 {[%clk 0:02:56]} 7. d5 {[%clk 0:03:02]}  e6 {[%clk 0:02:54]} 8. Qd2 {[%clk 0:03:02]}  exd5 {[%clk 0:02:53]} 9. cxd5 {[%clk 0:03:03]}  a6 {[%clk 0:02:47]} 10. a4 {[%clk 0:03:02]}  Qa5 {[%clk 0:02:40]} 11. Ra3 {[%clk 0:03:01]}  Nbd7 {[%clk 0:02:37]} 12. Nge2 {[%clk 0:02:52]}  Re8 {[%clk 0:02:34]} 13. Nc1 {[%clk 0:02:45]}  Ne5 {[%clk 0:02:22]} 14. Be2 {[%clk 0:02:45]}  c4 {[%clk 0:02:01]} 15. O-O {[%clk 0:02:42]}  Qc7 {[%clk 0:01:52]} 16. Be3 {[%clk 0:02:36]}  Rb8 {[%clk 0:01:48]} 17. a5 {[%clk 0:02:36]}  Nfd7 {[%clk 0:01:35]} 18. f4 {[%clk 0:02:35]}  Nd3 {[%clk 0:01:32]} 19. Bxd3 {[%clk 0:02:31]}  cxd3 {[%clk 0:01:31]} 20. Nxd3 {[%clk 0:02:32]}  b5 {[%clk 0:01:28]} 21. Nb4 {[%clk 0:02:28]}  Nc5 {[%clk 0:01:24]} 22. Nc6 {[%clk 0:02:21]}  Nxe4 {[%clk 0:01:09]} 23. Nxe4 {[%clk 0:02:20]}  Rxe4 {[%clk 0:01:09]} 24. Nxb8 {[%clk 0:02:19]}  Qxb8 {[%clk 0:01:09]} 25. Bb6 {[%clk 0:02:16]}  h5 {[%clk 0:01:07]} 26. Re3 {[%clk 0:02:15]}  Bf5 {[%clk 0:01:03]} 27. Rfe1 {[%clk 0:02:12]}  Rxe3 {[%clk 0:01:00]} 28. Qxe3 {[%clk 0:02:10]}  Kh7 {[%clk 0:00:56]} 29. Bd4 {[%clk 0:02:02]}  Qd8 {[%clk 0:00:48]} 30. Bxg7 {[%clk 0:02:01]}  Kxg7 {[%clk 0:00:48]} 31. Qc3+ {[%clk 0:02:01]}  Kg8 {[%clk 0:00:38]} 32. b4 {[%clk 0:02:00]}  Qh4 {[%clk 0:00:29]} 33. Re8+ {[%clk 0:01:58]}  Kh7 {[%clk 0:00:27]} 34. Rh8# {[%clk 0:01:59]} 1-0


[Site "https://www.chess.com"]

[Event "Titled Tuesday Blitz February 22 Early 2022"]
[White "Elgersma, Onno"]
[Black "Rangel, Daniel"]
[WhiteFideId "1053531"]
[BlackFideId "2124475"]
[WhiteElo "2304"]
[BlackElo "2187"]
[Result "0-1"]
[Round "03"]
[TimeControl "180+1"]
[Date "2022.02.22"]
[WhiteClock "0:00:06"]
[BlackClock "0:00:22"]

1. e4 {[%clk 0:03:00]}  c5 {[%clk 0:02:57]} 2. Nf3 {[%clk 0:03:01]}  g6 {[%clk 0:02:58]} 3. c3 {[%clk 0:03:00]}  Bg7 {[%clk 0:02:58]} 4. d4 {[%clk 0:03:00]}  cxd4 {[%clk 0:02:59]} 5. cxd4 {[%clk 0:03:00]}  d5 {[%clk 0:02:58]} 6. e5 {[%clk 0:03:01]}  Bg4 {[%clk 0:02:57]} 7. Nbd2 {[%clk 0:02:56]}  Nc6 {[%clk 0:02:56]} 8. Bb5 {[%clk 0:02:55]}  e6 {[%clk 0:02:56]} 9. O-O {[%clk 0:02:54]}  Ne7 {[%clk 0:02:56]} 10. h3 {[%clk 0:02:54]}  Bxf3 {[%clk 0:02:54]} 11. Nxf3 {[%clk 0:02:55]}  O-O {[%clk 0:02:54]} 12. b3 {[%clk 0:02:55]}  Qb6 {[%clk 0:02:49]} 13. Bxc6 {[%clk 0:02:53]}  Nxc6 {[%clk 0:02:47]} 14. Ba3 {[%clk 0:02:53]}  Rfc8 {[%clk 0:02:44]} 15. Bc5 {[%clk 0:02:45]}  Qd8 {[%clk 0:02:39]} 16. Qd2 {[%clk 0:02:44]}  Bf8 {[%clk 0:02:36]} 17. b4 {[%clk 0:02:37]}  Bg7 {[%clk 0:02:30]} 18. Rac1 {[%clk 0:02:28]}  b6 {[%clk 0:02:14]} 19. Bd6 {[%clk 0:02:28]}  Ne7 {[%clk 0:02:12]} 20. b5 {[%clk 0:02:21]}  Nf5 {[%clk 0:02:06]} 21. Bb4 {[%clk 0:02:19]}  Bh6 {[%clk 0:02:05]} 22. Qb2 {[%clk 0:02:08]}  Bxc1 {[%clk 0:02:04]} 23. Rxc1 {[%clk 0:02:08]}  Rxc1+ {[%clk 0:02:03]} 24. Qxc1 {[%clk 0:02:09]}  Rc8 {[%clk 0:02:03]} 25. Qf4 {[%clk 0:02:09]}  h5 {[%clk 0:01:58]} 26. g4 {[%clk 0:02:08]}  hxg4 {[%clk 0:01:57]} 27. hxg4 {[%clk 0:02:09]}  Nh4 {[%clk 0:01:52]} 28. Ne1 {[%clk 0:00:49]}  Rc4 {[%clk 0:01:09]} 29. Bd2 {[%clk 0:00:42]}  Qe7 {[%clk 0:01:02]} 30. Qg5 {[%clk 0:00:20]}  Qxg5 {[%clk 0:01:00]} 31. Bxg5 {[%clk 0:00:21]}  Rxd4 {[%clk 0:01:01]} 32. Bxh4 {[%clk 0:00:21]}  Rxg4+ {[%clk 0:01:01]} 33. Bg3 {[%clk 0:00:21]}  Ra4 {[%clk 0:01:02]} 34. Kg2 {[%clk 0:00:18]}  Rxa2 {[%clk 0:01:02]} 35. Nd3 {[%clk 0:00:17]}  Ra5 {[%clk 0:01:01]} 36. Kf3 {[%clk 0:00:17]}  Rxb5 {[%clk 0:01:01]} 37. Ke3 {[%clk 0:00:18]}  a5 {[%clk 0:00:58]} 38. Kd4 {[%clk 0:00:15]}  a4 {[%clk 0:00:58]} 39. Nc1 {[%clk 0:00:15]}  a3 {[%clk 0:00:57]} 40. Kc3 {[%clk 0:00:16]}  Rc5+ {[%clk 0:00:55]} 41. Kd2 {[%clk 0:00:14]}  b5 {[%clk 0:00:53]} 42. Bf4 {[%clk 0:00:14]}  b4 {[%clk 0:00:51]} 43. Be3 {[%clk 0:00:15]}  Rc4 {[%clk 0:00:46]} 44. Kd1 {[%clk 0:00:13]}  Kg7 {[%clk 0:00:44]} 45. f4 {[%clk 0:00:11]}  f6 {[%clk 0:00:43]} 46. exf6+ {[%clk 0:00:10]}  Kxf6 {[%clk 0:00:44]} 47. Kd2 {[%clk 0:00:11]}  Kf5 {[%clk 0:00:44]} 48. Kd3 {[%clk 0:00:08]}  Rxf4 {[%clk 0:00:26]} 49. Bxf4 {[%clk 0:00:05]}  Kxf4 {[%clk 0:00:27]} 50. Kc2 {[%clk 0:00:05]}  g5 {[%clk 0:00:26]} 51. Nd3+ {[%clk 0:00:05]}  Ke3 {[%clk 0:00:24]} 52. Nxb4 {[%clk 0:00:06]}  g4 {[%clk 0:00:23]} 53. Kd1 {[%clk 0:00:06]}  g3 {[%clk 0:00:22]} 54. Nc2+ {[%clk 0:00:06]}  Kf2 {[%clk 0:00:22]} 0-1


[Site "https://www.chess.com"]

[Event "Titled Tuesday Blitz February 22 Early 2022"]
[White "Erdogdu, Mert"]
[Black "Brunner, Nicolas"]
[WhiteFideId "6301495"]
[BlackFideId "620246"]
[WhiteElo "2485"]
[BlackElo "2372"]
[Result "1/2-1/2"]
[Round "03"]
[TimeControl "180+1"]
[Date "2022.02.22"]
[WhiteClock "0:00:28"]
[BlackClock "0:00:52"]

1. e4 {[%clk 0:03:00]}  e5 {[%clk 0:02:59]} 2. Nf3 {[%clk 0:03:00]}  Nc6 {[%clk 0:03:00]} 3. Bc4 {[%clk 0:02:59]}  Nf6 {[%clk 0:02:59]} 4. d3 {[%clk 0:02:58]}  Be7 {[%clk 0:02:58]} 5. O-O {[%clk 0:02:58]}  O-O {[%clk 0:02:58]} 6. Re1 {[%clk 0:02:58]}  d6 {[%clk 0:02:57]} 7. a4 {[%clk 0:02:58]}  Na5 {[%clk 0:02:56]} 8. Ba2 {[%clk 0:02:58]}  c5 {[%clk 0:02:56]} 9. Nc3 {[%clk 0:02:59]}  Nc6 {[%clk 0:02:53]} 10. Nd5 {[%clk 0:02:55]}  Nxd5 {[%clk 0:02:51]} 11. Bxd5 {[%clk 0:02:56]}  Be6 {[%clk 0:02:51]} 12. c3 {[%clk 0:02:55]}  Qd7 {[%clk 0:02:51]} 13. d4 {[%clk 0:02:38]}  cxd4 {[%clk 0:02:41]} 14. cxd4 {[%clk 0:02:38]}  Bxd5 {[%clk 0:02:29]} 15. exd5 {[%clk 0:02:38]}  Nxd4 {[%clk 0:02:28]} 16. Nxd4 {[%clk 0:02:35]}  exd4 {[%clk 0:02:29]} 17. Qxd4 {[%clk 0:02:36]}  Bf6 {[%clk 0:02:29]} 18. Qb4 {[%clk 0:02:35]}  a5 {[%clk 0:02:10]} 19. Qb3 {[%clk 0:02:32]}  Rfe8 {[%clk 0:02:09]} 20. Bd2 {[%clk 0:02:21]}  h6 {[%clk 0:01:53]} 21. Rac1 {[%clk 0:02:03]}  Bd4 {[%clk 0:01:40]} 22. Rc4 {[%clk 0:01:27]}  Bc5 {[%clk 0:01:22]} 23. Qf3 {[%clk 0:01:13]}  Rxe1+ {[%clk 0:01:20]} 24. Bxe1 {[%clk 0:01:13]}  Re8 {[%clk 0:01:21]} 25. Re4 {[%clk 0:01:12]}  Qxa4 {[%clk 0:01:12]} 26. Rxe8+ {[%clk 0:01:05]}  Qxe8 {[%clk 0:01:12]} 27. Bxa5 {[%clk 0:00:47]}  Qa4 {[%clk 0:01:10]} 28. Be1 {[%clk 0:00:46]}  Qa1 {[%clk 0:01:03]} 29. Qc3 {[%clk 0:00:40]}  Bd4 {[%clk 0:00:53]} 30. Qc8+ {[%clk 0:00:28]}  Kh7 {[%clk 0:00:53]} 31. Qf5+ {[%clk 0:00:28]}  Kg8 {[%clk 0:00:52]} 32. Qc8+ {[%clk 0:00:27]}  Kh7 {[%clk 0:00:52]} 33. Qf5+ {[%clk 0:00:28]}  Kg8 {[%clk 0:00:52]} 34. Qc8+ {[%clk 0:00:28]} 1/2-1/2


[Site "https://www.chess.com"]

[Event "Titled Tuesday Blitz February 22 Early 2022"]
[White "Estrada Nieto, Julian"]
[Black "Terzi, Alexei"]
[WhiteFideId "5101018"]
[BlackFideId "13505076"]
[WhiteElo "2246"]
[BlackElo "2031"]
[Result "1-0"]
[Round "03"]
[TimeControl "180+1"]
[Date "2022.02.22"]
[WhiteClock "0:01:39"]
[BlackClock "0:00:08"]

1. e4 {[%clk 0:03:00]}  c5 {[%clk 0:02:59]} 2. Nf3 {[%clk 0:03:00]}  Nc6 {[%clk 0:02:59]} 3. Bb5 {[%clk 0:03:00]}  g6 {[%clk 0:02:58]} 4. Bxc6 {[%clk 0:03:00]}  dxc6 {[%clk 0:02:59]} 5. d3 {[%clk 0:03:00]}  Bg7 {[%clk 0:02:59]} 6. h3 {[%clk 0:03:01]}  Nf6 {[%clk 0:02:58]} 7. Nc3 {[%clk 0:03:01]}  Nd7 {[%clk 0:02:58]} 8. Be3 {[%clk 0:03:01]}  b6 {[%clk 0:02:58]} 9. Qd2 {[%clk 0:03:01]}  h6 {[%clk 0:02:58]} 10. O-O {[%clk 0:03:00]}  Nf8 {[%clk 0:02:57]} 11. a4 {[%clk 0:02:56]}  a5 {[%clk 0:02:57]} 12. Nh2 {[%clk 0:02:52]}  e5 {[%clk 0:02:55]} 13. Ne2 {[%clk 0:02:52]}  Ne6 {[%clk 0:02:55]} 14. f4 {[%clk 0:02:51]}  exf4 {[%clk 0:02:53]} 15. Nxf4 {[%clk 0:02:51]}  Bxb2 {[%clk 0:02:45]} 16. Rab1 {[%clk 0:02:49]}  Bd4 {[%clk 0:02:43]} 17. c3 {[%clk 0:02:47]}  Bxe3+ {[%clk 0:02:37]} 18. Qxe3 {[%clk 0:02:47]}  h5 {[%clk 0:02:14]} 19. Nf3 {[%clk 0:02:42]}  Ra7 {[%clk 0:01:49]} 20. Ne5 {[%clk 0:02:37]}  Qc7 {[%clk 0:01:36]} 21. d4 {[%clk 0:02:07]}  cxd4 {[%clk 0:01:24]} 22. cxd4 {[%clk 0:02:07]}  Qd6 {[%clk 0:01:11]} 23. Nxe6 {[%clk 0:01:54]}  Bxe6 {[%clk 0:01:01]} 24. Rxb6 {[%clk 0:01:54]}  O-O {[%clk 0:00:26]} 25. Rxc6 {[%clk 0:01:49]}  Qe7 {[%clk 0:00:21]} 26. d5 {[%clk 0:01:44]}  Bxh3 {[%clk 0:00:11]} 27. Nxg6 {[%clk 0:01:43]}  fxg6 {[%clk 0:00:10]} 28. Rxg6+ {[%clk 0:01:40]}  Kh8 {[%clk 0:00:08]} 29. Qh6+ {[%clk 0:01:39]} 1-0


[Site "https://www.chess.com"]

[Event "Titled Tuesday Blitz February 22 Early 2022"]
[White "Eynullayev, Atilla"]
[Black "Osmonbekov, Talaibek"]
[WhiteFideId "13413570"]
[BlackFideId "2017253"]
[WhiteElo "1979"]
[BlackElo "2135"]
[Result "1-0"]
[Round "03"]
[TimeControl "180+1"]
[Date "2022.02.22"]
[WhiteClock "0:02:12"]
[BlackClock "0:00:37"]

1. e4 {[%clk 0:03:00]}  c5 {[%clk 0:02:58]} 2. Nf3 {[%clk 0:03:01]}  d6 {[%clk 0:02:58]} 3. d4 {[%clk 0:03:01]}  cxd4 {[%clk 0:02:59]} 4. Nxd4 {[%clk 0:03:01]}  Nf6 {[%clk 0:03:00]} 5. Nc3 {[%clk 0:03:02]}  g6 {[%clk 0:03:00]} 6. Be3 {[%clk 0:03:02]}  Bg7 {[%clk 0:03:01]} 7. f3 {[%clk 0:03:02]}  O-O {[%clk 0:03:01]} 8. Qd2 {[%clk 0:03:02]}  Nc6 {[%clk 0:03:02]} 9. g4 {[%clk 0:03:03]}  Qa5 {[%clk 0:02:56]} 10. h4 {[%clk 0:02:56]}  Nxd4 {[%clk 0:02:51]} 11. Bxd4 {[%clk 0:02:56]}  Be6 {[%clk 0:02:51]} 12. h5 {[%clk 0:02:49]}  Rfc8 {[%clk 0:02:42]} 13. h6 {[%clk 0:02:37]}  Bh8 {[%clk 0:02:41]} 14. g5 {[%clk 0:02:36]}  Nd7 {[%clk 0:02:38]} 15. Bxh8 {[%clk 0:02:35]}  Kxh8 {[%clk 0:02:38]} 16. f4 {[%clk 0:02:27]}  Bg4 {[%clk 0:02:13]} 17. Bh3 {[%clk 0:02:22]}  Bxh3 {[%clk 0:02:09]} 18. Rxh3 {[%clk 0:02:23]}  Qc5 {[%clk 0:02:01]} 19. O-O-O {[%clk 0:02:22]}  b5 {[%clk 0:01:59]} 20. Nd5 {[%clk 0:02:22]}  e6 {[%clk 0:01:53]} 21. Rc3 {[%clk 0:02:22]}  exd5 {[%clk 0:01:35]} 22. Rxc5 {[%clk 0:02:20]}  dxc5 {[%clk 0:01:35]} 23. Qxd5 {[%clk 0:02:20]}  Kg8 {[%clk 0:00:44]} 24. Qxd7 {[%clk 0:02:15]}  Re8 {[%clk 0:00:44]} 25. Qd6 {[%clk 0:02:12]}  Re6 {[%clk 0:00:39]} 26. Qd8+ {[%clk 0:02:12]}  Re8 {[%clk 0:00:37]} 27. Qf6 {[%clk 0:02:12]} 1-0


[Site "https://www.chess.com"]

[Event "Titled Tuesday Blitz February 22 Early 2022"]
[White "FGHSMN"]
[Black "Grischuk, Alexander"]
[BlackFideId "4126025"]
[WhiteElo "2805"]
[BlackElo "2762"]
[Result "0-1"]
[Round "03"]
[TimeControl "180+1"]
[Date "2022.02.22"]
[WhiteClock "0:00:01"]
[BlackClock "0:00:06"]

1. d4 {[%clk 0:03:00]}  Nf6 {[%clk 0:02:59]} 2. Nf3 {[%clk 0:03:00]}  e6 {[%clk 0:02:57]} 3. Bf4 {[%clk 0:03:00]}  c5 {[%clk 0:02:57]} 4. c3 {[%clk 0:03:00]}  b6 {[%clk 0:02:44]} 5. e3 {[%clk 0:02:56]}  Be7 {[%clk 0:02:44]} 6. h3 {[%clk 0:02:55]}  O-O {[%clk 0:02:44]} 7. Bd3 {[%clk 0:02:54]}  Ba6 {[%clk 0:02:42]} 8. O-O {[%clk 0:02:52]}  Bxd3 {[%clk 0:02:33]} 9. Qxd3 {[%clk 0:02:53]}  d5 {[%clk 0:02:30]} 10. a4 {[%clk 0:02:51]}  Nc6 {[%clk 0:02:28]} 11. Nbd2 {[%clk 0:02:49]}  Qc8 {[%clk 0:02:25]} 12. Ne5 {[%clk 0:02:46]}  Nxe5 {[%clk 0:02:23]} 13. Bxe5 {[%clk 0:02:47]}  Nd7 {[%clk 0:02:24]} 14. Bg3 {[%clk 0:02:44]}  Qb7 {[%clk 0:02:24]} 15. Rad1 {[%clk 0:02:37]}  Rfc8 {[%clk 0:02:22]} 16. Rfe1 {[%clk 0:02:35]}  h6 {[%clk 0:02:02]} 17. e4 {[%clk 0:01:32]}  cxd4 {[%clk 0:02:02]} 18. Qxd4 {[%clk 0:01:32]}  Nf6 {[%clk 0:01:45]} 19. exd5 {[%clk 0:01:22]}  Qxd5 {[%clk 0:01:25]} 20. Ne4 {[%clk 0:01:09]}  Qb3 {[%clk 0:00:51]} 21. Bd6 {[%clk 0:00:46]}  Rd8 {[%clk 0:00:46]} 22. Nxf6+ {[%clk 0:00:40]}  Bxf6 {[%clk 0:00:43]} 23. Qb4 {[%clk 0:00:30]}  Qc2 {[%clk 0:00:41]} 24. Rc1 {[%clk 0:00:30]}  Qf5 {[%clk 0:00:38]} 25. Rcd1 {[%clk 0:00:22]}  Rd7 {[%clk 0:00:34]} 26. Qb3 {[%clk 0:00:21]}  Rad8 {[%clk 0:00:33]} 27. Bg3 {[%clk 0:00:21]}  Rd3 {[%clk 0:00:23]} 28. Rxd3 {[%clk 0:00:20]}  Qxd3 {[%clk 0:00:24]} 29. a5 {[%clk 0:00:16]}  bxa5 {[%clk 0:00:23]} 30. Bc7 {[%clk 0:00:17]}  Rd5 {[%clk 0:00:15]} 31. Qb8+ {[%clk 0:00:16]}  Kh7 {[%clk 0:00:15]} 32. Qxa7 {[%clk 0:00:17]}  Qd2 {[%clk 0:00:15]} 33. Rf1 {[%clk 0:00:17]}  Qxb2 {[%clk 0:00:13]} 34. Bxa5 {[%clk 0:00:16]}  Qa2 {[%clk 0:00:10]} 35. Bb6 {[%clk 0:00:11]}  Qxa7 {[%clk 0:00:10]} 36. Bxa7 {[%clk 0:00:12]}  Bxc3 {[%clk 0:00:11]} 37. Be3 {[%clk 0:00:12]}  g5 {[%clk 0:00:09]} 38. g4 {[%clk 0:00:10]}  Kg6 {[%clk 0:00:08]} 39. Kg2 {[%clk 0:00:11]}  h5 {[%clk 0:00:05]} 40. Rc1 {[%clk 0:00:09]}  Be5 {[%clk 0:00:05]} 41. Rc8 {[%clk 0:00:08]}  Bf4 {[%clk 0:00:04]} 42. Bxf4 {[%clk 0:00:06]}  gxf4 {[%clk 0:00:04]} 43. Kf3 {[%clk 0:00:04]}  hxg4+ {[%clk 0:00:04]} 44. hxg4 {[%clk 0:00:04]}  e5 {[%clk 0:00:04]} 45. Ke4 {[%clk 0:00:04]}  Ra5 {[%clk 0:00:04]} 46. Rg8+ {[%clk 0:00:04]}  Kf6 {[%clk 0:00:04]} 47. Kf3 {[%clk 0:00:04]}  Ra3+ {[%clk 0:00:04]} 48. Kg2 {[%clk 0:00:04]}  e4 {[%clk 0:00:04]} 49. Re8 {[%clk 0:00:05]}  Ra4 {[%clk 0:00:04]} 50. Kg1 {[%clk 0:00:01]}  Kg5 {[%clk 0:00:04]} 51. Rg8+ {[%clk 0:00:02]}  Kh4 {[%clk 0:00:05]} 52. Kg2 {[%clk 0:00:03]}  f3+ {[%clk 0:00:04]} 53. Kh2 {[%clk 0:00:03]}  Ra2 {[%clk 0:00:05]} 54. Kg1 {[%clk 0:00:03]}  Ra1+ {[%clk 0:00:05]} 55. Kh2 {[%clk 0:00:03]}  Rf1 {[%clk 0:00:05]} 56. Rh8+ {[%clk 0:00:02]}  Kxg4 {[%clk 0:00:05]} 57. Rg8+ {[%clk 0:00:02]}  Kf5 {[%clk 0:00:05]} 58. Kh3 {[%clk 0:00:01]}  Rh1+ {[%clk 0:00:05]} 59. Kg3 {[%clk 0:00:01]}  Rg1+ {[%clk 0:00:05]} 60. Kh2 {[%clk 0:00:01]}  Rxg8 {[%clk 0:00:06]} 0-1


[Site "https://www.chess.com"]

[Event "Titled Tuesday Blitz February 22 Early 2022"]
[White "Fecker, Noah"]
[Black "Qashashvili, Alexandre"]
[WhiteFideId "1334263"]
[BlackFideId "13600842"]
[WhiteElo "2312"]
[BlackElo "2316"]
[Result "1-0"]
[Round "03"]
[TimeControl "180+1"]
[Date "2022.02.22"]
[WhiteClock "0:01:09"]
[BlackClock "0:00:05"]

1. e4 {[%clk 0:02:57]}  c6 {[%clk 0:03:00]} 2. d4 {[%clk 0:02:57]}  d5 {[%clk 0:03:01]} 3. Nc3 {[%clk 0:02:58]}  dxe4 {[%clk 0:03:01]} 4. Nxe4 {[%clk 0:02:59]}  Nd7 {[%clk 0:03:02]} 5. Ng5 {[%clk 0:02:58]}  Ngf6 {[%clk 0:03:01]} 6. Bd3 {[%clk 0:02:55]}  e6 {[%clk 0:03:01]} 7. N1f3 {[%clk 0:02:55]}  Bd6 {[%clk 0:03:01]} 8. Qe2 {[%clk 0:02:55]}  Nb6 {[%clk 0:03:01]} 9. c4 {[%clk 0:02:48]}  c5 {[%clk 0:03:01]} 10. d5 {[%clk 0:02:47]}  h6 {[%clk 0:02:59]} 11. dxe6 {[%clk 0:02:37]}  hxg5 {[%clk 0:02:57]} 12. exf7+ {[%clk 0:02:36]}  Kf8 {[%clk 0:02:47]} 13. Nxg5 {[%clk 0:02:36]}  Qe7 {[%clk 0:02:47]} 14. Be3 {[%clk 0:02:35]}  Bg4 {[%clk 0:02:41]} 15. f3 {[%clk 0:02:30]}  Bd7 {[%clk 0:02:28]} 16. O-O-O {[%clk 0:02:29]}  Rd8 {[%clk 0:02:19]} 17. Rhe1 {[%clk 0:02:24]}  Rh5 {[%clk 0:02:14]} 18. Qf2 {[%clk 0:02:19]}  Rxg5 {[%clk 0:02:09]} 19. Bxg5 {[%clk 0:02:19]}  Qxf7 {[%clk 0:02:09]} 20. Qh4 {[%clk 0:02:18]}  Kg8 {[%clk 0:01:40]} 21. Bh7+ {[%clk 0:01:43]}  Nxh7 {[%clk 0:01:39]} 22. Bxd8 {[%clk 0:01:40]}  Bf4+ {[%clk 0:01:35]} 23. Kb1 {[%clk 0:01:39]}  Nxc4 {[%clk 0:01:05]} 24. Rxd7 {[%clk 0:01:28]}  Qxd7 {[%clk 0:00:48]} 25. Qxf4 {[%clk 0:01:26]}  Qxd8 {[%clk 0:00:17]} 26. Qxc4+ {[%clk 0:01:23]}  Kh8 {[%clk 0:00:15]} 27. Qxc5 {[%clk 0:01:20]}  Nf6 {[%clk 0:00:13]} 28. Qc2 {[%clk 0:01:16]}  Qd6 {[%clk 0:00:11]} 29. Rd1 {[%clk 0:01:16]}  Qxh2 {[%clk 0:00:11]} 30. Rd8+ {[%clk 0:01:16]}  Ng8 {[%clk 0:00:10]} 31. a3 {[%clk 0:01:12]}  Qh4 {[%clk 0:00:07]} 32. Qc8 {[%clk 0:01:10]}  Qe1+ {[%clk 0:00:06]} 33. Ka2 {[%clk 0:01:09]}  Qe6+ {[%clk 0:00:05]} 34. Qxe6 {[%clk 0:01:09]} 1-0


[Site "https://www.chess.com"]

[Event "Titled Tuesday Blitz February 22 Early 2022"]
[White "Gabdrakhmanov, Azat"]
[Black "Mikhnenko, Alexander"]
[WhiteFideId "34189197"]
[BlackFideId "34143014"]
[WhiteElo "2279"]
[BlackElo "2140"]
[Result "0-1"]
[Round "03"]
[TimeControl "180+1"]
[Date "2022.02.22"]
[WhiteClock "0:00:09"]
[BlackClock "0:00:13"]

1. e4 {[%clk 0:03:00]}  c5 {[%clk 0:02:59]} 2. Nf3 {[%clk 0:03:01]}  e6 {[%clk 0:02:59]} 3. d4 {[%clk 0:03:01]}  cxd4 {[%clk 0:02:59]} 4. Nxd4 {[%clk 0:03:02]}  Nf6 {[%clk 0:03:00]} 5. Nc3 {[%clk 0:03:02]}  Nc6 {[%clk 0:03:00]} 6. Ndb5 {[%clk 0:03:01]}  Bc5 {[%clk 0:02:58]} 7. Nd6+ {[%clk 0:02:59]}  Ke7 {[%clk 0:02:59]} 8. Bf4 {[%clk 0:02:58]}  e5 {[%clk 0:02:59]} 9. Nf5+ {[%clk 0:02:58]}  Kf8 {[%clk 0:02:59]} 10. Bg5 {[%clk 0:02:48]}  d6 {[%clk 0:02:59]} 11. Bc4 {[%clk 0:02:44]}  Be6 {[%clk 0:02:54]} 12. Bxe6 {[%clk 0:02:31]}  fxe6 {[%clk 0:02:53]} 13. Ng3 {[%clk 0:02:31]}  h6 {[%clk 0:02:38]} 14. Be3 {[%clk 0:02:30]}  Bxe3 {[%clk 0:02:18]} 15. fxe3 {[%clk 0:02:31]}  Ke7 {[%clk 0:02:19]} 16. Qd2 {[%clk 0:02:27]}  Qb6 {[%clk 0:02:17]} 17. O-O-O {[%clk 0:02:26]}  Rhd8 {[%clk 0:02:16]} 18. Kb1 {[%clk 0:02:19]}  Rac8 {[%clk 0:02:16]} 19. Rhf1 {[%clk 0:02:17]}  Na5 {[%clk 0:02:11]} 20. b3 {[%clk 0:02:09]}  Nc4 {[%clk 0:02:10]} 21. Qd3 {[%clk 0:01:42]}  Qb4 {[%clk 0:01:25]} 22. Rf2 {[%clk 0:01:13]}  Na3+ {[%clk 0:00:59]} 23. Kb2 {[%clk 0:01:12]}  Rc6 {[%clk 0:00:44]} 24. Nb1 {[%clk 0:00:54]}  Nxb1 {[%clk 0:00:24]} 25. Kxb1 {[%clk 0:00:55]}  Rdc8 {[%clk 0:00:23]} 26. c4 {[%clk 0:00:49]}  Rxc4 {[%clk 0:00:20]} 27. Rfd2 {[%clk 0:00:31]}  R8c6 {[%clk 0:00:17]} 28. Qe2 {[%clk 0:00:23]}  Rc3 {[%clk 0:00:16]} 29. Nh5 {[%clk 0:00:20]}  Qxe4+ {[%clk 0:00:15]} 30. Ka1 {[%clk 0:00:16]}  Rc1+ {[%clk 0:00:15]} 31. Kb2 {[%clk 0:00:17]}  Qb1+ {[%clk 0:00:15]} 32. Ka3 {[%clk 0:00:17]}  Ra6+ {[%clk 0:00:12]} 33. Kb4 {[%clk 0:00:16]}  Rb6+ {[%clk 0:00:10]} 34. Ka3 {[%clk 0:00:16]}  Ra6+ {[%clk 0:00:09]} 35. Kb4 {[%clk 0:00:16]}  Qe4+ {[%clk 0:00:09]} 36. Rd4 {[%clk 0:00:14]}  exd4 {[%clk 0:00:10]} 37. Rxd4 {[%clk 0:00:15]}  Qc6 {[%clk 0:00:09]} 38. Qb5 {[%clk 0:00:08]}  Qxb5+ {[%clk 0:00:08]} 39. Kxb5 {[%clk 0:00:08]}  Rc5+ {[%clk 0:00:09]} 40. Kb4 {[%clk 0:00:09]}  Rb6+ {[%clk 0:00:09]} 41. Ka3 {[%clk 0:00:09]}  Nxh5 {[%clk 0:00:10]} 42. Kb2 {[%clk 0:00:07]}  Nf6 {[%clk 0:00:11]} 43. g4 {[%clk 0:00:08]}  Re5 {[%clk 0:00:11]} 44. g5 {[%clk 0:00:08]}  hxg5 {[%clk 0:00:12]} 45. h4 {[%clk 0:00:08]}  gxh4 {[%clk 0:00:11]} 46. Rxh4 {[%clk 0:00:09]}  Rxe3 {[%clk 0:00:12]} 47. Rh8 {[%clk 0:00:10]}  Rc6 {[%clk 0:00:12]} 48. a4 {[%clk 0:00:10]}  Re2+ {[%clk 0:00:13]} 49. Ka3 {[%clk 0:00:11]}  a5 {[%clk 0:00:13]} 50. Rb8 {[%clk 0:00:11]}  Rcc2 {[%clk 0:00:12]} 51. Rxb7+ {[%clk 0:00:11]}  Nd7 {[%clk 0:00:13]} 52. b4 {[%clk 0:00:09]}  Rc3# {[%clk 0:00:13]} 0-1


[Site "https://www.chess.com"]